fUSD/lending_fUSD_20260630
["ID","MTS","AMOUNT","RATE_DAILY","PERIOD"]
[426764696,1782789579000,-500.0,0.00014959,2]
[426764697,1782789579000,-500.0,0.00014959,2]
[426764694,1782789579000,-500.0,0.00014959,2]
[426764695,1782789579000,-500.0,0.00014959,2]
[426764698,1782789579000,-500.0,0.00014959,2]
[426764689,1782789579000,-500.0,0.00014959,2]
[426764693,1782789579000,-500.0,0.00014959,2]
[426764687,1782789579000,-500.0,0.00014959,2]
[426764684,1782789579000,-500.0,0.00014959,2]
[426764685,1782789579000,-500.0,0.00014959,2]
[426764686,1782789579000,-500.0,0.00014959,2]
[426764680,1782789579000,-151.0,0.00014932,2]
[426764692,1782789579000,-500.0,0.00014959,2]
[426764691,1782789579000,-500.0,0.00014959,2]
[426764688,1782789579000,-500.0,0.00014959,2]
[426764690,1782789579000,-500.0,0.00014959,2]
[426764713,1782789580000,-500.0,0.00014959,2]
[426764722,1782789580000,-500.0,0.00014959,2]
[426764725,1782789580000,-500.0,0.00014959,2]
[426764723,1782789580000,-500.0,0.00014959,2]
[426764718,1782789580000,-500.0,0.00014959,2]
[426764721,1782789580000,-500.0,0.00014959,2]
[426764717,1782789580000,-500.0,0.00014959,2]
[426764720,1782789580000,-500.0,0.00014959,2]
[426764719,1782789580000,-500.0,0.00014959,2]
[426764716,1782789580000,-500.0,0.00014959,2]
[426764726,1782789580000,-500.0,0.00014959,2]
[426764714,1782789580000,-500.0,0.00014959,2]
[426764712,1782789580000,-500.0,0.00014959,2]
[426764709,1782789580000,-500.0,0.00014959,2]
[426764708,1782789580000,-500.0,0.00014959,2]
[426764710,1782789580000,-500.0,0.00014959,2]
[426764711,1782789580000,-500.0,0.00014959,2]
[426764704,1782789580000,-500.0,0.00014959,2]
[426764707,1782789580000,-500.0,0.00014959,2]
[426764706,1782789580000,-500.0,0.00014959,2]
[426764705,1782789580000,-500.0,0.00014959,2]
[426764715,1782789580000,-500.0,0.00014959,2]
[426764724,1782789580000,-500.0,0.00014959,2]
[426764735,1782789580000,-500.0,0.00014959,2]
[426764727,1782789580000,-500.0,0.00014959,2]
[426764728,1782789580000,-500.0,0.00014959,2]
[426764749,1782789580000,-500.0,0.00014959,2]
[426764748,1782789580000,-500.0,0.00014959,2]
[426764747,1782789580000,-500.0,0.00014959,2]
[426764746,1782789580000,-500.0,0.00014959,2]
[426764743,1782789580000,-500.0,0.00014959,2]
[426764745,1782789580000,-500.0,0.00014959,2]
[426764744,1782789580000,-500.0,0.00014959,2]
[426764742,1782789580000,-500.0,0.00014959,2]
[426764740,1782789580000,-500.0,0.00014959,2]
[426764741,1782789580000,-500.0,0.00014959,2]
[426764750,1782789580000,-500.0,0.00014959,2]
[426764739,1782789580000,-500.0,0.00014959,2]
[426764737,1782789580000,-500.0,0.00014959,2]
[426764736,1782789580000,-500.0,0.00014959,2]
[426764751,1782789580000,-500.0,0.00014959,2]
[426764734,1782789580000,-500.0,0.00014959,2]
[426764732,1782789580000,-500.0,0.00014959,2]
[426764733,1782789580000,-500.0,0.00014959,2]
[426764730,1782789580000,-500.0,0.00014959,2]
[426764731,1782789580000,-500.0,0.00014959,2]
[426764729,1782789580000,-500.0,0.00014959,2]
[426764738,1782789580000,-500.0,0.00014959,2]
[426764764,1782789581000,-500.0,0.00014959,2]
[426764766,1782789581000,-500.0,0.00014959,2]
[426764765,1782789581000,-500.0,0.00014959,2]
[426764769,1782789581000,-640.777056,0.00014959,2]
[426764768,1782789581000,-500.0,0.00014959,2]
[426764770,1782789581000,-151.0,0.00014959,2]
[426764763,1782789581000,-500.0,0.00014959,2]
[426764767,1782789581000,-500.0,0.00014959,2]
[426764761,1782789581000,-500.0,0.00014959,2]
[426764756,1782789581000,-500.0,0.00014959,2]
[426764760,1782789581000,-500.0,0.00014959,2]
[426764759,1782789581000,-500.0,0.00014959,2]
[426764757,1782789581000,-500.0,0.00014959,2]
[426764758,1782789581000,-500.0,0.00014959,2]
[426764755,1782789581000,-500.0,0.00014959,2]
[426764754,1782789581000,-500.0,0.00014959,2]
[426764753,1782789581000,-500.0,0.00014959,2]
[426764752,1782789581000,-500.0,0.00014959,2]
[426764772,1782789581000,-215.983571,0.00014959,2]
[426764762,1782789581000,-500.0,0.00014959,2]
[426764774,1782789581000,-215.983571,0.00014959,2]
[426764771,1782789581000,-151.0,0.00014959,2]
[426764773,1782789581000,-151.0,0.00014959,2]
[426764794,1782789581000,-684.3,0.00014982,2]
[426764791,1782789581000,-684.3,0.00014982,2]
[426764793,1782789581000,-684.3,0.00014982,2]
[426764790,1782789581000,-500.0,0.00014982,2]
[426764792,1782789581000,-684.3,0.00014982,2]
[426764787,1782789581000,-500.0,0.00014982,2]
[426764789,1782789581000,-500.0,0.00014982,2]
[426764788,1782789581000,-500.0,0.00014982,2]
[426764785,1782789581000,-151.0,0.0001498,2]
[426764786,1782789581000,-500.0,0.00014982,2]
[426764781,1782789581000,-153.41,0.00014976,2]
[426764783,1782789581000,-151.0,0.0001498,2]
[426764776,1782789581000,-215.983571,0.00014959,2]
[426764779,1782789581000,-267.155367,0.00014959,2]
[426764777,1782789581000,-215.983571,0.00014959,2]
[426764775,1782789581000,-161.130785,0.00014959,2]
[426764780,1782789581000,-3063.99105208,0.0001496,2]
[426764782,1782789581000,-151.0,0.0001498,2]
[426764784,1782789581000,-151.0,0.0001498,2]
[426764778,1782789581000,-151.0,0.00014959,2]
[426764806,1782789582000,-500.0,0.00014982,2]
[426764814,1782789582000,-500.0,0.00014982,2]
[426764812,1782789582000,-500.0,0.00014982,2]
[426764813,1782789582000,-500.0,0.00014982,2]
[426764811,1782789582000,-500.0,0.00014982,2]
[426764810,1782789582000,-500.0,0.00014982,2]
[426764808,1782789582000,-500.0,0.00014982,2]
[426764809,1782789582000,-500.0,0.00014982,2]
[426764805,1782789582000,-649.67,0.00014982,2]
[426764807,1782789582000,-495.70927719,0.00014982,2]
[426764797,1782789582000,-500.0,0.00014982,2]
[426764803,1782789582000,-649.67,0.00014982,2]
[426764800,1782789582000,-500.0,0.00014982,2]
[426764801,1782789582000,-649.67,0.00014982,2]
[426764802,1782789582000,-649.67,0.00014982,2]
[426764799,1782789582000,-500.0,0.00014982,2]
[426764796,1782789582000,-500.0,0.00014982,2]
[426764798,1782789582000,-500.0,0.00014982,2]
[426764795,1782789582000,-684.3,0.00014982,2]
[426764815,1782789582000,-500.0,0.00014982,2]
[426764804,1782789582000,-649.67,0.00014982,2]
[426764817,1782789582000,-500.0,0.00014982,2]
[426764839,1782789582000,-151.0,0.00014983,2]
[426764819,1782789582000,-872.2475868,0.00014983,2]
[426764816,1782789582000,-500.0,0.00014982,2]
[426764837,1782789582000,-151.0,0.00014983,2]
[426764838,1782789582000,-151.0,0.00014983,2]
[426764835,1782789582000,-151.0,0.00014983,2]
[426764836,1782789582000,-151.0,0.00014983,2]
[426764834,1782789582000,-151.0,0.00014983,2]
[426764830,1782789582000,-161.515926,0.00014983,2]
[426764833,1782789582000,-151.0,0.00014983,2]
[426764831,1782789582000,-151.0,0.00014983,2]
[426764828,1782789582000,-151.0,0.00014983,2]
[426764832,1782789582000,-151.0,0.00014983,2]
[426764827,1782789582000,-151.0,0.00014983,2]
[426764829,1782789582000,-151.0,0.00014983,2]
[426764821,1782789582000,-151.0,0.00014983,2]
[426764820,1782789582000,-151.0,0.00014983,2]
[426764822,1782789582000,-151.0,0.00014983,2]
[426764818,1782789582000,-1526.5631672,0.00014983,2]
[426764824,1782789582000,-151.0,0.00014983,2]
[426764826,1782789582000,-151.0,0.00014983,2]
[426764825,1782789582000,-151.0,0.00014983,2]
[426764823,1782789582000,-152.222469,0.00014983,2]
[426764852,1782789583000,-215.983571,0.00014983,2]
[426764858,1782789583000,-151.0,0.00014997,2]
[426764859,1782789583000,-500.0,0.00014999,2]
[426764855,1782789583000,-627.66130262,0.00014984,2]
[426764856,1782789583000,-500.0,0.00014985,2]
[426764857,1782789583000,-270.62058722,0.0001499,2]
[426764853,1782789583000,-151.0,0.00014983,2]
[426764854,1782789583000,-151.0,0.00014983,2]
[426764851,1782789583000,-215.983571,0.00014983,2]
[426764840,1782789583000,-151.0,0.00014983,2]
[426764850,1782789583000,-215.983571,0.00014983,2]
[426764846,1782789583000,-151.0,0.00014983,2]
[426764845,1782789583000,-151.0,0.00014983,2]
[426764848,1782789583000,-215.983571,0.00014983,2]
[426764860,1782789583000,-343.11322788,0.00014999,2]
[426764844,1782789583000,-215.983571,0.00014983,2]
[426764843,1782789583000,-215.983571,0.00014983,2]
[426764842,1782789583000,-151.0,0.00014983,2]
[426764841,1782789583000,-151.0,0.00014983,2]
[426764849,1782789583000,-215.983571,0.00014983,2]
[426764861,1782789583000,-684.3,0.00014999,2]
[426764847,1782789583000,-215.983571,0.00014983,2]
[426764862,1782789583000,-684.3,0.00014999,2]
[426764863,1782789583000,-684.3,0.00014999,2]
[426764880,1782789583000,-649.67,0.00014999,2]
[426764882,1782789583000,-649.67,0.00014999,2]
[426764883,1782789583000,-649.67,0.00014999,2]
[426764881,1782789583000,-649.67,0.00014999,2]
[426764879,1782789583000,-379.66371852,0.00014999,2]
[426764878,1782789583000,-500.0,0.00014999,2]
[426764876,1782789583000,-500.0,0.00014999,2]
[426764877,1782789583000,-500.0,0.00014999,2]
[426764874,1782789583000,-500.0,0.00014999,2]
[426764884,1782789583000,-649.67,0.00014999,2]
[426764873,1782789583000,-500.0,0.00014999,2]
[426764875,1782789583000,-500.0,0.00014999,2]
[426764864,1782789583000,-684.3,0.00014999,2]
[426764867,1782789583000,-684.3,0.00014999,2]
[426764866,1782789583000,-684.3,0.00014999,2]
[426764865,1782789583000,-684.3,0.00014999,2]
[426764869,1782789583000,-684.3,0.00014999,2]
[426764870,1782789583000,-684.3,0.00014999,2]
[426764872,1782789583000,-684.53752086,0.00014999,2]
[426764871,1782789583000,-684.3,0.00014999,2]
[426764868,1782789583000,-684.3,0.00014999,2]
[426764891,1782789584000,-649.88233145,0.00014999,2]
[426764885,1782789584000,-649.67,0.00014999,2]
[426764886,1782789584000,-649.67,0.00014999,2]
[426764888,1782789584000,-649.67,0.00014999,2]
[426764887,1782789584000,-649.67,0.00014999,2]
[426764889,1782789584000,-649.67,0.00014999,2]
[426764893,1782789584000,-500.0,0.00014999,2]
[426764894,1782789584000,-500.0,0.00014999,2]
[426764892,1782789584000,-500.0,0.00014999,2]
[426764895,1782789584000,-500.0,0.00014999,2]
[426764896,1782789584000,-522.9943377,0.00014999,2]
[426764897,1782789584000,-500.0,0.00014999,2]
[426764899,1782789584000,-1513787.48921545,0.00015,2]
[426764898,1782789584000,-298.77773986,0.00014999,2]
[426764890,1782789584000,-649.67,0.00014999,2]
[426764900,1782789632000,438.38213845,9.824e-05,2]
[426764901,1782789633000,284.61988015,9.824e-05,2]
[426764902,1782789662000,173.97,5e-05,30]
[426764903,1782789729000,-160.0,0.00010571,2]
[426764904,1782789735000,-3307.966964,0.00010518,2]
[426764905,1782789735000,-884.70192758,0.00010535,2]
[426764907,1782789735000,-166.0554747,0.00010571,2]
[426764906,1782789735000,-160.0,0.00010571,2]
[426764909,1782789735000,-321.27563372,0.00010593,2]
[426764908,1782789735000,-160.0,0.00010582,2]
[426764912,1782789736000,-150.0,0.00010623,2]
[426764910,1782789736000,-24.45192626,0.00010593,2]
[426764911,1782789736000,-259.50757937,0.00010614,2]
[426764913,1782789737000,-500.0,0.00010623,2]
[426764915,1782789737000,-500.0,0.00010623,2]
[426764914,1782789737000,-500.0,0.00010623,2]
[426764917,1782789737000,-500.0,0.00010623,2]
[426764916,1782789737000,-640.79939274,0.00010623,2]
[426764919,1782789737000,-500.0,0.00010623,2]
[426764921,1782789737000,-425.24110163,0.00010623,2]
[426764920,1782789737000,-500.0,0.00010623,2]
[426764918,1782789737000,-500.0,0.00010623,2]
[426764922,1782789738000,-74.75889837,0.00010623,2]
[426764924,1782789738000,-500.0,0.00010623,2]
[426764923,1782789738000,-500.0,0.00010623,2]
[426764925,1782789738000,-500.0,0.00010623,2]
[426764926,1782789738000,-500.0,0.00010623,2]
[426764928,1782789738000,-500.0,0.00010623,2]
[426764929,1782789738000,-500.0,0.00010623,2]
[426764932,1782789738000,-425.24110163,0.00010623,2]
[426764930,1782789738000,-500.0,0.00010623,2]
[426764931,1782789738000,-500.0,0.00010623,2]
[426764927,1782789738000,-500.0,0.00010623,2]
[426764933,1782789739000,-74.75889837,0.00010623,2]
[426764934,1782789739000,-500.0,0.00010623,2]
[426764935,1782789739000,-500.0,0.00010623,2]
[426764938,1782789739000,-500.0,0.00010623,2]
[426764936,1782789739000,-500.0,0.00010623,2]
[426764940,1782789739000,-500.0,0.00010623,2]
[426764939,1782789739000,-500.0,0.00010623,2]
[426764937,1782789739000,-500.0,0.00010623,2]
[426764943,1782789740000,-425.24110163,0.00010623,2]
[426764942,1782789740000,-500.0,0.00010623,2]
[426764941,1782789740000,-500.0,0.00010623,2]
[426764945,1782789741000,-500.0,0.00010623,2]
[426764947,1782789741000,-500.0,0.00010623,2]
[426764944,1782789741000,-74.75889837,0.00010623,2]
[426764946,1782789741000,-500.0,0.00010623,2]
[426764949,1782789741000,-500.0,0.00010623,2]
[426764954,1782789741000,-425.24110163,0.00010623,2]
[426764951,1782789741000,-500.0,0.00010623,2]
[426764952,1782789741000,-500.0,0.00010623,2]
[426764950,1782789741000,-500.0,0.00010623,2]
[426764948,1782789741000,-500.0,0.00010623,2]
[426764953,1782789741000,-500.0,0.00010623,2]
[426764955,1782789742000,-74.75889837,0.00010623,2]
[426764956,1782789742000,-500.0,0.00010623,2]
[426764957,1782789742000,-500.0,0.00010623,2]
[426764958,1782789742000,-500.0,0.00010623,2]
[426764960,1782789742000,-500.0,0.00010623,2]
[426764959,1782789742000,-328.46001277,0.00010623,2]
[426764961,1782789742000,-500.0,0.00010623,2]
[426764962,1782789742000,-500.0,0.00010623,2]
[426764964,1782789742000,-500.0,0.00010623,2]
[426764966,1782789742000,-96.78108886,0.00010623,2]
[426764965,1782789742000,-500.0,0.00010623,2]
[426764963,1782789742000,-500.0,0.00010623,2]
[426764968,1782789743000,-500.0,0.00010623,2]
[426764967,1782789743000,-403.21891114,0.00010623,2]
[426764972,1782789743000,-500.0,0.00010623,2]
[426764969,1782789743000,-500.0,0.00010623,2]
[426764970,1782789743000,-500.0,0.00010623,2]
[426764974,1782789743000,-154.80179804,0.00010623,2]
[426764973,1782789743000,-500.0,0.00010623,2]
[426764976,1782789743000,-500.0,0.00010623,2]
[426764977,1782789743000,-337.97591724,0.00010623,2]
[426764978,1782789743000,-104.00337358,0.00010623,2]
[426764971,1782789743000,-500.0,0.00010623,2]
[426764975,1782789743000,-500.0,0.00010623,2]
[426764982,1782789744000,-4141.3976568,0.00010624,2]
[426764981,1782789744000,-360.0,0.00010624,2]
[426764980,1782789744000,-303.07173524,0.00010623,2]
[426764979,1782789744000,-195.53060796,0.00010623,2]
[426764983,1782789746000,-5000.0,0.00010624,2]
[426764984,1782789747000,-5000.0,0.00010624,2]
[426764988,1782789775000,-379.35,0.00010158,2]
[426764985,1782789775000,-379.35,0.00010093,2]
[426764986,1782789775000,-379.35,0.00010115,2]
[426764987,1782789775000,-379.35,0.00010137,2]
[426764991,1782789775000,-379.35,0.00010223,2]
[426764990,1782789775000,-379.35,0.00010202,2]
[426764992,1782789775000,-357.55,0.00010245,2]
[426764989,1782789775000,-379.35,0.0001018,2]
[426764993,1782789948000,13238.4,9.541e-05,2]
[426764995,1782790032000,200.0,0.000108,3]
[426764996,1782790034000,500.0,0.000109,3]
[426764997,1782790064000,-21.8,0.00010245,2]
[426764998,1782790064000,-176.70421315,0.00010249,2]
[426764999,1782790064000,-174.54604382,0.00010253,2]
[426765000,1782790064000,-379.35,0.00010267,2]
[426765001,1782790064000,-379.35,0.00010288,2]
[426765003,1782790064000,-160.0,0.00010331,2]
[426765002,1782790064000,-379.35,0.0001031,2]
[426765006,1782790064000,-379.35,0.00010353,2]
[426765004,1782790064000,-379.35,0.00010332,2]
[426765007,1782790064000,-150.0,0.00010372,2]
[426765011,1782790064000,-1122.14974303,0.0001044,2]
[426765010,1782790064000,-379.35,0.00010418,2]
[426765008,1782790064000,-379.35,0.00010375,2]
[426765009,1782790064000,-379.35,0.00010397,2]
[426765005,1782790064000,-160.0,0.00010342,2]
[426765014,1782790071000,-379.35,0.0001044,2]
[426765013,1782790071000,-157.842,0.0001044,2]
[426765012,1782790071000,-2026.35225697,0.0001044,2]
[426765016,1782790071000,-160.0,0.00010474,2]
[426765017,1782790071000,-379.35,0.00010483,2]
[426765015,1782790071000,-379.35,0.00010462,2]
[426765018,1782790101000,-500.0,0.00010504,2]
[426765019,1782790115000,14554.62,9.741e-05,2]
[426765022,1782790141000,-1056.77,0.00010278,2]
[426765021,1782790141000,-1056.77,0.00010027,2]
[426765025,1782790141000,-500.0,0.00010503,2]
[426765023,1782790141000,-500.0,0.00010503,2]
[426765026,1782790141000,-282.80264592,0.00010503,2]
[426765027,1782790141000,-24.28918013,0.00010503,2]
[426765031,1782790141000,-500.0,0.00010503,2]
[426765029,1782790141000,-500.0,0.00010503,2]
[426765028,1782790141000,-617.28187157,0.00010503,2]
[426765030,1782790141000,-500.0,0.00010503,2]
[426765032,1782790141000,-500.0,0.00010503,2]
[426765033,1782790141000,-72.77050983,0.00010503,2]
[426765024,1782790141000,-500.19170123,0.00010503,2]
[426765034,1782790166000,-427.22949017,0.00010503,2]
[426765036,1782790166000,-304.90260181,0.00010503,2]
[426765035,1782790166000,-500.0,0.00010503,2]
[426765038,1782790166000,-160.0,0.00010503,2]
[426765037,1782790166000,-500.0,0.00010503,2]
[426765039,1782790166000,-3518.24328402,0.00010504,2]
[426765040,1782790166000,-1583.34975898,0.00010504,2]
[426765041,1782790166000,-379.35,0.00010505,2]
[426765042,1782790169000,500.0,0.00010503,2]
[426765044,1782790169000,164.7067138,0.00010503,2]
[426765043,1782790169000,500.0,0.00010503,2]
[426765045,1782790169000,500.0,0.00010503,2]
[426765046,1782790169000,401.34539254,0.00010503,2]
[426765052,1782790169000,500.0,0.00010503,2]
[426765048,1782790169000,500.0,0.00010503,2]
[426765050,1782790169000,500.0,0.00010503,2]
[426765049,1782790169000,500.0,0.00010503,2]
[426765051,1782790169000,500.0,0.00010503,2]
[426765053,1782790169000,104.2130959,0.00010503,2]
[426765047,1782790169000,80.32428236,0.00010503,2]
[426765059,1782790191000,-500.0,0.00010503,2]
[426765056,1782790191000,-500.0,0.00010503,2]
[426765055,1782790191000,-500.0,0.00010503,2]
[426765057,1782790191000,-500.0,0.00010503,2]
[426765058,1782790191000,-500.0,0.00010503,2]
[426765054,1782790191000,-395.7869041,0.00010503,2]
[426765063,1782790191000,-232.7692539,0.00010503,2]
[426765065,1782790191000,-589.80128504,0.00010524,2]
[426765064,1782790191000,-500.0,0.00010503,2]
[426765060,1782790191000,-500.0,0.00010503,2]
[426765061,1782790191000,-500.0,0.00010503,2]
[426765062,1782790191000,-267.2307461,0.00010503,2]
[426765066,1782790192000,-1058.9068707,0.00010524,2]
[426765067,1782790203000,168.64,9.75e-05,2]
[426765068,1782790210000,1852.42,9.75e-05,2]
[426765085,1782790232000,-9549.79,0.00010614,2]
[426765084,1782790232000,-379.35,0.00010614,2]
[426765083,1782790232000,-150.0,0.00010613,2]
[426765082,1782790232000,-379.35,0.00010592,2]
[426765080,1782790232000,-379.35,0.00010549,2]
[426765078,1782790232000,-379.35,0.00010527,2]
[426765079,1782790232000,-1056.77,0.00010529,2]
[426765086,1782790232000,-150.99,0.00010614,2]
[426765075,1782790232000,-160.0,0.00010503,2]
[426765076,1782790232000,-162.5678761,0.00010514,2]
[426765081,1782790232000,-379.35,0.0001057,2]
[426765077,1782790232000,-1441.0931293,0.00010524,2]
[426765087,1782790232000,-24657.57,0.00010614,2]
[426765089,1782790232000,-299.99,0.00010614,2]
[426765099,1782790232000,-588764.76480819,0.00010624,2]
[426765088,1782790232000,-9999.99,0.00010614,2]
[426765098,1782790232000,-656.0,0.00010624,2]
[426765095,1782790232000,-593.3436494,0.00010623,2]
[426765096,1782790232000,-9999.99,0.00010623,2]
[426765097,1782790232000,-9999.99,0.00010623,2]
[426765090,1782790232000,-2752.11,0.00010614,2]
[426765092,1782790232000,-9999.99,0.00010614,2]
[426765093,1782790232000,-1253.29234272,0.00010623,2]
[426765091,1782790232000,-999.99,0.00010614,2]
[426765094,1782790232000,-40499.92,0.00010623,2]
[426765103,1782790233000,-856.52,0.00010624,2]
[426765101,1782790233000,-182829.05869273,0.00010624,2]
[426765102,1782790233000,-87782.13964164,0.00010624,2]
[426765100,1782790233000,-80154.18419735,0.00010624,2]
[426765130,1782790237000,-151401.7771135,0.00010624,2]
[426765129,1782790237000,-1195.71616546,0.00010624,2]
[426765135,1782790241000,-602.69277081,0.00010624,2]
[426765136,1782790241000,-13895.49628425,0.00010624,2]
[426765137,1782790241000,-3520.31406376,0.00010624,2]
[426765140,1782790241000,-33657.07005389,0.00010624,2]
[426765141,1782790241000,-57180.97403977,0.00010624,2]
[426765138,1782790241000,-1654.78743519,0.00010624,2]
[426765139,1782790241000,-331.64,0.00010624,2]
[426765171,1782790243000,-33907.27704983,0.00010624,2]
[426765170,1782790243000,-114.13160037,0.00010624,2]
[426765172,1782790243000,-5984.01660061,0.00010624,2]
[426765174,1782790243000,-16791.42403167,0.00010624,2]
[426765173,1782790243000,-89608.81181199,0.00010624,2]
[426765175,1782790243000,-24443.9998,0.00010624,2]
[426765184,1782790243000,-398.82335694,0.00010624,2]
[426765180,1782790243000,-4821.12710788,0.00010624,2]
[426765177,1782790243000,-541.54300055,0.00010624,2]
[426765178,1782790243000,-464.76347741,0.00010624,2]
[426765182,1782790243000,-5267.1814808,0.00010624,2]
[426765183,1782790243000,-423.95581672,0.00010624,2]
[426765181,1782790243000,-1173.91821989,0.00010624,2]
[426765179,1782790243000,-524.60980056,0.00010624,2]
[426765176,1782790243000,-443.51301838,0.00010624,2]
[426765185,1782790244000,-333.31321851,0.00010624,2]
[426765188,1782790245000,-929.72015834,0.00010624,2]
[426765187,1782790245000,-621.13466327,0.00010624,2]
[426765189,1782790246000,-993.80575965,0.00010624,2]
[426765199,1782790459000,-150.0,0.00010295,2]
[426765201,1782790475000,242.41,0.00010097,2]
[426765200,1782790475000,307.59,0.00010065,2]
[426765202,1782790512000,-65.18,0.00010097,2]
[426765203,1782790547000,288.18,9.898e-05,2]
[426765204,1782790566000,-307.59,0.00010129,2]
[426765205,1782790585000,715.45,9.897e-05,2]
[426765206,1782790619000,-166.82376538,0.00010145,2]
[426765207,1782790672000,-307.59,0.00010161,2]
[426765208,1782790689000,851.78,9.554e-05,2]
[426765209,1782790725000,-307.59,0.00010193,2]
[426765210,1782790760000,1090.28094012,0.00010295,7]
[426765212,1782790761000,1090.28094012,0.00010501,7]
[426765211,1782790761000,168.76972079,0.00010295,7]
[426765213,1782790762000,168.76972079,0.00010501,7]
[426765214,1782790762000,1090.28094012,0.00010809,7]
[426765215,1782790763000,168.76972079,0.00010809,7]
[426765216,1782790779000,-362.73275357,0.00010221,2]
[426765217,1782790782000,300.87,9.545e-05,2]
[426765219,1782790832000,-307.59,0.00010225,2]
[426765221,1782790832000,-307.59,0.00010289,2]
[426765220,1782790832000,-307.59,0.00010257,2]
[426765223,1782790832000,-307.59,0.00010322,2]
[426765224,1782790832000,-307.59,0.00010354,2]
[426765222,1782790832000,-150.0,0.00010301,2]
[426765226,1782790832000,-150.0,0.00010403,2]
[426765227,1782790832000,-307.59,0.00010418,2]
[426765229,1782790832000,-642.94041325,0.00010423,2]
[426765228,1782790832000,-150.99,0.00010418,2]
[426765231,1782790832000,-1760.53958675,0.00010423,2]
[426765230,1782790832000,-299.99,0.00010423,2]
[426765225,1782790832000,-307.59,0.00010386,2]
[426765232,1782790863000,200.0,0.000109,3]
[426765233,1782790885000,-241.82183572,0.00010323,2]
[426765237,1782790897000,-549.88324571,0.00010422,2]
[426765235,1782790897000,-500.0,0.00010422,2]
[426765234,1782790897000,-241.8218357,0.00010374,2]
[426765236,1782790897000,-500.0,0.00010422,2]
[426765238,1782790897000,-296.54903417,0.00010422,2]
[426765243,1782790897000,-500.0,0.00010422,2]
[426765241,1782790897000,-500.0,0.00010422,2]
[426765239,1782790897000,-500.0,0.00010422,2]
[426765242,1782790897000,-500.0,0.00010422,2]
[426765245,1782790897000,-58.58105178,0.00010422,2]
[426765244,1782790897000,-500.0,0.00010422,2]
[426765240,1782790897000,-353.16483264,0.00010422,2]
[426765249,1782790898000,-252.08563119,0.00010422,2]
[426765247,1782790898000,-500.0,0.00010422,2]
[426765248,1782790898000,-500.0,0.00010422,2]
[426765246,1782790898000,-441.41894822,0.00010422,2]
[426765254,1782790899000,-500.0,0.00010422,2]
[426765253,1782790899000,-500.0,0.00010422,2]
[426765251,1782790899000,-500.0,0.00010422,2]
[426765252,1782790899000,-500.0,0.00010422,2]
[426765255,1782790899000,-500.0,0.00010422,2]
[426765250,1782790899000,-500.0,0.00010422,2]
[426765257,1782790899000,-193.50457941,0.00010422,2]
[426765262,1782790899000,-500.0,0.00010422,2]
[426765259,1782790899000,-500.0,0.00010422,2]
[426765256,1782790899000,-306.49542059,0.00010422,2]
[426765260,1782790899000,-500.0,0.00010422,2]
[426765258,1782790899000,-500.0,0.00010422,2]
[426765261,1782790899000,-500.0,0.00010422,2]
[426765263,1782790900000,-500.0,0.00010422,2]